Cogmind - Beta 15 @@@ ROGUE MODE // 2025.08.06 @ 00:02:02 Player: SnailSD Result: Destroyed by S-10 Pest with Light Assault Rifle Performance ------------- Evolutions (0) 0 Regions Visited (4) 800 Robots Destroyed (29) 145 Value Destroyed (578) 578 Prototype IDs (24) 480 Alien Tech Used (0) 0 Bonus (300) 300 TOTAL SCORE: 2303 Bonus ------- Aligned with FarCom 300 Cogmind --------- Core Integrity 0/250 Matter 268/300 Energy 78/100 System Corruption 0% Temperature Cool (2) Movement Walking (120) Location -9/Mines Parts ------- > --- POWER (1) -------- (None) > --- PROPULSION (2) --- Aluminum Leg Aluminum Leg > --- UTILITY (2) ------ Medium Storage Unit > --- WEAPON (2) ------- Particle Gun Longsword +1 > --- INVENTORY (10) --- Ion Engine Aluminum Leg Wheel Large Storage Unit Large Storage Unit Experimental Sensor Array Hacking Suite Grenade Launcher Peak State ------------ > --- POWER ------------ Ion Engine > --- PROPULSION ------- Wheel Wheel > --- UTILITY ---------- Medium Storage Unit Experimental Sensor Array > --- WEAPON ----------- Assault Rifle Light Assault Rifle > --- INVENTORY -------- Ion Engine Aluminum Leg Wheel Large Storage Unit Large Storage Unit Hacking Suite Particle Gun Grenade Launcher [Rating: 16] Favorites ----------- Power Ion Engine Engine Ion Engine Propulsion Light Treads Treads Light Treads Leg Aluminum Leg Wheel Wheel Utility Propulsion Shielding Device Experimental Sensor Array Storage Small Storage Unit Protection Propulsion Shielding Weapon Assault Rifle Energy Gun EM Pulse Gun Ballistic Gun Assault Rifle Slashing Weapon Longsword +1 Build | -11 -10 -10 -10 -9 ------- Run | Yrd Mat Min Exi Min Slots Evolved . | . . . . . Power . | . . . . . Propulsion . | . . . . . Utility . | . . . . . Weapon . | . . . . . Parts Attached 20 | 6 8 . 2 4 Power 3 | 1 2 . . . Engine 3 | 1 2 . . . Core . | . . . . . Reactor . | . . . . . Propulsion 6 | 2 2 . . 2 Treads 2 | 2 . . . . Leg 2 | . . . . 2 Wheel 2 | . 2 . . . Hover . | . . . . . Flight . | . . . . . Utility 5 | 1 3 . 1 . Device 1 | . . . 1 . Storage 2 | 1 1 . . . Processor . | . . . . . Hackware . | . . . . . Protection 2 | . 2 . . . Artifact . | . . . . . Weapon 6 | 2 1 . 1 2 Energy Gun 2 | 1 . . . 1 Energy Cannon . | . . . . . Ballistic Gun 3 | 1 1 . 1 . Ballistic Cannon . | . . . . . Launcher . | . . . . . Special Weapon . | . . . . . Impact Weapon . | . . . . . Slashing Weapon 1 | . . . . 1 Piercing Weapon . | . . . . . Special Melee Weapon . | . . . . . Unidentified Prototypes 1 | . . . 1 . Parts Lost 11 | . 5 . . 6 Power 3 | . 2 . . 1 Propulsion 3 | . 1 . . 2 Utility 2 | . 1 . . 1 Weapon 3 | . 1 . . 2 Highest Loss Streak 6 | . 2 . . 6 To Critical Strikes . | . . . . . Average Backups 8 | 3 7 10 9 9 Power 1 | . 1 1 1 1 Propulsion 2 | 1 3 2 1 2 Utility 2 | . . 3 4 4 Weapon 2 | . 1 3 3 2 Tool/Special . | . . . . . Unused Backups 9 | . 2 . . 7 Power 1 | . . . . 1 Propulsion 2 | . . . . 2 Utility 4 | . 1 . . 3 Weapon 2 | . 1 . . 1 Tool/Special . | . . . . . Average Slot Usage (%) 94 | . 90 100 100 82 Engine 13 | . 14 14 14 8 Treads 12 | . 23 . . . Wheel 14 | . 1 28 28 16 Storage 14 | . 14 14 14 14 Protection 10 | . 8 14 14 11 Ballistic Gun 27 | . 26 28 28 16 Peak Build Rating 16 | 6 8 9 16 14 Average Rating 7 | 5 6 8 8 9 On Entrance 6 | . 6 8 9 9 Naked Turns . | . . . . . Heaviest Build 19 | 14 19 19 19 16 Greatest Support 40 | 40 40 20 20 20 Greatest Overweight (x) 5 | 3 . . . 5 Average Overweight (x) . | . . . . 1 Largest Inventory Capacity 10 | 8 10 10 10 10 Average Capacity 8 | 7 8 10 10 10 Most Carried 10 | 7 10 10 10 10 Average Carried 8 | 3 7 9 9 9 Final Capacity 10 | 8 10 10 10 10 Final Carried 10 | 6 10 10 10 8 Class Distribution -------------------- 100% | Mutant Dominant Class ---------------- Mutant | -10/Materials Mutant | -10/Mines Mutant | -10/Exiles Mutant | -9/Mines Resources | -11 -10 -10 -10 -9 ----------- Run | Yrd Mat Min Exi Min Matter Collected 699 | 281 318 64 . 36 Remotely . | . . . . . Salvage Created 962 | 128 622 142 . 70 Parts 61 | 9 34 14 . 4 Haulers Intercepted . | . . . . . Recyclers Shooed 2 | . 1 1 . . Parts Field Recycled . | . . . . . Retrieved Matter . | . . . . . Parts Self-Destructed . | . . . . . Prevented . | . . . . . Kills | -11 -10 -10 -10 -9 ------- Run | Yrd Mat Min Exi Min Combat Hostiles Destroyed 18 | . 13 3 . 2 Guns 18 | . 13 3 . 2 Classes Destroyed 7 | 3 3 1 . . Worker 5 | 2 . 3 . . Builder 1 | . . 1 . . Tunneler 1 | 1 . . . . Recycler 2 | 1 1 . . . Operator 2 | . 2 . . . Swarmer 6 | . 3 3 . . Grunt 12 | . 10 . . 2 Best Kill Streak 5 | 2 5 4 . 2 Combat Bots Only 4 | . 4 2 . 2 Max Kills in Single Turn 2 | 1 2 1 . 1 Gunslinging 1 | . 1 . . . Exploded . | . . . . . Melee . | . . . . . Uniques/NPCs Destroyed . | . . . . . Combat | -11 -10 -10 -10 -9 -------- Run | Yrd Mat Min Exi Min Hostile Shots Fired 174 | . 66 10 . 98 Missed 55 | . 16 3 . 36 Hits 119 | . 50 7 . 62 Projectile 119 | . 50 7 . 62 Critical Strikes 1 | . . 1 . . Actively Blocked 1 | . . 1 . . Damage Taken 1347 | 35 638 60 . 614 Core 253 | . 22 6 . 225 Absorbed by Shields . | . . . . . Redirected to Shielding 51 | . 18 8 . 25 Core Remaining (%) 100 | 100 . . . . Volleys Fired 101 | 7 67 16 . 11 Largest 2 | 2 2 2 . 2 Hottest 65 | 60 40 40 . 65 Shots Fired 186 | 14 122 32 . 18 Gun 186 | 14 122 32 . 18 Cannon . | . . . . . Launcher . | . . . . . Special . | . . . . . Kinetic 175 | 7 122 32 . 14 Thermal 4 | . . . . 4 Explosive . | . . . . . Electromagnetic 7 | 7 . . . . Robot Hit Streak 22 | 4 18 22 . 6 Robot Miss Streak 4 | 1 4 2 . 4 Penetration Max . | . . . . . Secondary Targets 2 | . 1 . . 1 Max Gunslinging Chain 1 | . 1 . . 1 Shots Hit Robots 120 | 10 82 17 . 11 Core Hits 50 | 4 34 8 . 4 Critical Kills . | . . . . . Critical Parts Destroyed . | . . . . . Critical Strikes . | . . . . . Melee Attacks . | . . . . . Impact . | . . . . . Slashing . | . . . . . Piercing . | . . . . . Sneak Attacks . | . . . . . Combat Hostiles . | . . . . . Follow-up Attacks . | . . . . . Damage Inflicted 1301 | 141 862 177 . 121 Guns 1272 | 116 858 177 . 121 Cannons . | . . . . . Explosions 25 | 25 . . . . Melee . | . . . . . Ramming 4 | . 4 . . . Kinetic 1206 | 63 858 177 . 108 Thermal 38 | 25 . . . 13 Explosive . | . . . . . Electromagnetic 53 | 53 . . . . Impact . | . . . . . Slashing . | . . . . . Piercing . | . . . . . Highest Corruption . | . . . . . Average Corruption . | . . . . . Corruption Purged . | . . . . . Corruption Blocked . | . . . . . Overload Shots . | . . . . . Overflow Damage . | . . . . . Projectiles . | . . . . . Explosions . | . . . . . Melee . | . . . . . Knockbacks . | . . . . . Impact . | . . . . . Kinetic . | . . . . . Secondary . | . . . . . Self-Inflicted Damage 35 | 35 . . . . Shots 1 | 1 . . . . Rammed 2 | . 2 . . . Targets Rammed 2 | . 2 . . . Kicked . | . . . . . Crushed . | . . . . . Highest Temperature 99 | 12 15 . . 99 Average Temperature 12 | 12 5 . . 33 Received Heat Transfer 495 | . 333 . . 162 Siege Activations . | . . . . . Martial Activations . | . . . . . Shielding Activations . | . . . . . Robots Disrupted . | . . . . . Combat Hostiles . | . . . . . Robots Corrupted . | . . . . . Combat Hostiles . | . . . . . Parts Fried . | . . . . . Impact Corruptions . | . . . . . Robots Melted . | . . . . . Combat Hostiles . | . . . . . Parts Melted . | . . . . . Heat Transferred 87 | 50 . . . 37 Parts Sabotaged . | . . . . . Parts Stolen . | . . . . . Parts Stripped . | . . . . . Power Chain Reactions 1 | 1 . . . . Alert | -11 -10 -10 -10 -9 ------- Run | Yrd Mat Min Exi Min Maximum Alert Level . | . . . . . Low Security (%) 100 | 100 100 100 . 100 Level 1 . | . . . . . Level 2 . | . . . . . Level 3 . | . . . . . Level 4 . | . . . . . Level 5 . | . . . . . High Security . | . . . . . Max Security . | . . . . . Peak Influence 130 | 10 130 100 . 30 Initial . | . . . . . Average 34 | 1 48 15 . 5 Influence Increases 570 | 20 375 135 . 40 Destroy 0b10 Robot/C 360 | . 260 60 . 40 Destroy 0b10 Robot/NC 55 | 20 15 20 . . Destroy Leader 80 | . 70 10 . . Disable Machine 15 | . 15 . . . Lose Combat Pursuer 60 | . 15 45 . . Influence Decreases 570 | 20 375 55 80 40 Entered New Map 80 | . . . 80 . Time Decay 420 | 20 335 55 . 10 Lost Part 70 | . 40 . . 30 Squads Dispatched 3 | . 3 . . . Investigation 1 | . 1 . . . Extermination . | . . . . . Reinforcement 2 | . 2 . . . Assault . | . . . . . Garrison . | . . . . . Intercept . | . . . . . Searches Triggered . | . . . . . Construction Impeded . | . . . . . Haulers Reinforced . | . . . . . Active Scanning Responses . | . . . . . Cargo Convoy Interrupts . | . . . . . Stealth | -11 -10 -10 -10 -9 --------- Run | Yrd Mat Min Exi Min Distress Signals 2 | . 2 . . . Communications Jammed . | . . . . . Distress Signals . | . . . . . Times Spotted 35 | . 22 6 . 7 Peak Tracking Total 7 | . 3 3 . 7 Tactical Retreats 3 | . 1 2 . . Traps | -11 -10 -10 -10 -9 ------- Run | Yrd Mat Min Exi Min Traps Triggered 1 | . 1 . . . Indirectly . | . . . . . Trap Hack Attempts . | . . . . . Triggered . | . . . . . Disarmed . | . . . . . Reprogrammed . | . . . . . Reused . | . . . . . Traps Extracted . | . . . . . Installed . | . . . . . Triggered . | . . . . . Machines | -11 -10 -10 -10 -9 ---------- Run | Yrd Mat Min Exi Min Machines Disabled 2 | . 2 . . . Max in Single Turn 1 | . 1 . . . Machines Repaired . | . . . . . Machines Dismantled . | . . . . . Machines Sabotaged . | . . . . . Overloaded Fab Kills . | . . . . . Hacking | -11 -10 -10 -10 -9 --------- Run | Yrd Mat Min Exi Min Machines Accessed 7 | . 2 . 5 . Terminals 2 | . 2 . . . Fabricators . | . . . . . Repair Stations . | . . . . . Recycling Units . | . . . . . Scanalyzers . | . . . . . Garrison Access . | . . . . . Total Hacks 52 | . 2 . 50 . Successful 51 | . 1 . 50 . Failed 1 | . 1 . . . Catastrophic . | . . . . . Database Lockouts . | . . . . . Manual 3 | . 2 . 1 . Terminals 2 | . 2 . . . Fabricators . | . . . . . Repair Stations . | . . . . . Recycling Units . | . . . . . Scanalyzers . | . . . . . Garrison Access . | . . . . . Terminal Hacks 50 | . . . 50 . Record 49 | . . . 49 . Proto ID Catalog 1 | . . . 1 . Fabricator Hacks . | . . . . . Repair Station Hacks . | . . . . . Recycling Unit Hacks . | . . . . . Scanalyzer . | . . . . . Garrison Access Hacks . | . . . . . Unauthorized Hacks 1 | . 1 . . . Terminals 1 | . 1 . . . Operators 1 | . 1 . . . Fabricators . | . . . . . Repair Stations . | . . . . . Recycling Units . | . . . . . Scanalyzers . | . . . . . Garrison Access . | . . . . . Data Cores Recovered . | . . . . . Used . | . . . . . Hacking Detections 1 | . 1 . . . Full Trace Events . | . . . . . Feedback Events . | . . . . . Feedback Blocked . | . . . . . Robot Schematics Acquired . | . . . . . Robots Built . | . . . . . Authchips . | . . . . . Time . | . . . . . Total Robot Build Rating . | . . . . . Part Schematics Acquired . | . . . . . Parts Built . | . . . . . Authchips . | . . . . . Time . | . . . . . Total Part Build Rating . | . . . . . Parts Repaired . | . . . . . Time . | . . . . . Parts Recycled . | . . . . . Recycled Matter . | . . . . . Retrieved Matter . | . . . . . Retrieved Components . | . . . . . Parts Scanalyzed . | . . . . . Part Schematics Acquired . | . . . . . Parts Damaged . | . . . . . Bothacking | -11 -10 -10 -10 -9 ------------ Run | Yrd Mat Min Exi Min Used RIF Installer . | . . . . . Robots Hacked . | . . . . . Non-combat . | . . . . . Combat . | . . . . . Robot Hacks Applied . | . . . . . Relay Couplers Released . | . . . . . Fabnet Peak Effective % . | . . . . . Robots Rewired . | . . . . . Allies Hacked . | . . . . . Hacks Repelled . | . . . . . Allies | -11 -10 -10 -10 -9 -------- Run | Yrd Mat Min Exi Min Total Allies . | . . . . . Largest Group . | . . . . . Highest-Rated Group . | . . . . . Highest-Rated Ally . | . . . . . Total Orders . | . . . . . Ally Attacks . | . . . . . Total Damage . | . . . . . Kills . | . . . . . Allies Corrupted . | . . . . . Allies Melted . | . . . . . Intel | -11 -10 -10 -10 -9 ------- Run | Yrd Mat Min Exi Min Active Infowar (turns) 1 | . . . 1 . Sensors 1 | . . . 1 . Robot Analysis Total . | . . . . . Derelict Logs Recovered 1 | . . 1 . . Drone Launches . | . . . . . Drone Recoveries . | . . . . . Exploration | -11 -10 -10 -10 -9 ------------- Run | Yrd Mat Min Exi Min Turns Passed 1990 | 153 954 349 495 39 Spaces Moved 1539 | 75 486 367 607 4 Core 13 | 12 . . . 1 Treads 494 | 63 431 . . . Legs 2 | . . . . 2 Wheels 1030 | . 55 367 607 1 Hover . | . . . . . Flight . | . . . . . Fastest Speed 50 | 50 80 80 80 95 Average Speed 106 | 155 150 80 80 176 Slowest Speed 300 | 200 160 80 80 300 Overloaded Moves . | . . . . . Propulsion Burnouts . | . . . . . Robots Hopped . | . . . . . Potential Cave-ins . | . . . . . Cave-ins Triggered . | . . . . . Exploration Rate (%) 43 | 5 62 49 93 7 Regions Visited 4 Branch Regions 3 Pre-discovered Areas 1 | . . . 1 . Known Exits Taken . | . . . . . Unknown Exits Taken 4 | 1 1 1 1 . Scrap Searched 1 | . . 1 . . Spaces Dug . | . . . . . Terrain Destroyed . | . . . . . Melee . | . . . . . Projectile . | . . . . . AOE . | . . . . . Terrain Rammed . | . . . . . Walls Destroyed . | . . . . . Machines Disabled . | . . . . . Actions | -11 -10 -10 -10 -9 --------- Run | Yrd Mat Min Exi Min Total 1717 | 95 593 393 617 19 Wait 25 | . 16 9 . . Move 1535 | 74 485 366 606 4 Hop . | . . . . . Pick Up 21 | 7 11 1 2 . Fast Attach 11 | 6 2 . 1 2 Attach 7 | . 4 . 1 2 Detach 1 | . . . 1 . Swap 3 | . 2 . 1 . Drop 9 | 1 4 1 3 . Fire 101 | 7 67 16 . 11 Melee . | . . . . . Ram . | . . . . . Kick . | . . . . . Crush 2 | . 2 . . . Escape Stasis . | . . . . . Rewire 2 | . . . 2 . Trap . | . . . . . Miscellaneous . | . . . . . Route ------- -11/Scrapyard -10/Materials (discovered 4 exits: [*Mat x3] / [*Min]) -10/Mines (discovered 3 exits: [*Mat] / *Exi / [*Sub]) -10/Exiles (discovered 2 exits: [*Min x2]) -9/Mines History --------- Turn | Location | Event 16 | -11/Scrapyard | Discovered new exit (range 16) 154 | -11/Scrapyard | Entered Materials 306 | -10/Materials | Build established: Mutant 351 | -10/Materials | Discovered new exit (range 13) 354 | -10/Materials | Discovered new exit (range 13) 608 | -10/Materials | Discovered new exit (range 9) 1015 | -10/Materials | Discovered new exit (range 4) 1108 | -10/Materials | Entered Mines 1141 | -10/Mines | Discovered new exit (range 10) 1172 | -10/Mines | Learned Materials security intel 1218 | -10/Mines | Found a damaged Exp. Sensor Array with a note attached 1220 | -10/Mines | Found Prototype Device 1397 | -10/Mines | Discovered new exit (range 12) 1453 | -10/Mines | Deemed a non-threat by the Exiles lab entrance 1453 | -10/Mines | Discovered new exit (range 5) 1457 | -10/Mines | Entered Exiles 1470 | -10/Exiles | Discovered new exit (range 15) 1491 | -10/Exiles | Met 8R-AWN 1502 | -10/Exiles | Met EX-HEX 1543 | -10/Exiles | Met EX-BIN 1557 | -10/Exiles | Aligned with FarCom system 1558 | -10/Exiles | Given EX-Vault access code 1595 | -10/Exiles | Opened EX-Vault 1601 | -10/Exiles | Identified Exp. Sensor Array 1605 | -10/Exiles | Found Longsword +1 1630 | -10/Exiles | Warned to stay clear of 0b10 Research branches 1651 | -10/Exiles | Met EX-DEC 1662 | -10/Exiles | Learned location of Zion (-7) 1713 | -10/Exiles | Discovered new exit (range 14) 1776 | -10/Exiles | Visited The Gauntlet 1952 | -10/Exiles | Left Exiles lab with Longsword +1 1952 | -10/Exiles | Entered Mines 1969 | -9/Mines | Core integrity fell below 50% 1980 | -9/Mines | Core integrity fell below 20% 1991 | -9/Mines | Destroyed by S-10 Pest with Light Assault Rifle Last Messages --------------- get an answer. --BIN 01713_ EXIT=FOUND 01867_ A-02 Transporter is unpowered. LOCATION=UNKNOWN GOAL=ESCAPE 01952_ Receiving FarCom transmissions... 01958_ G-34 Mercenary destroyed. 01964_ Wheel destroyed. 01969_ G-34 Mercenary destroyed. 01969_ Switching to secondary target: G-47 Trooper. 01970_ Assault Rifle destroyed. 01970_ Lgt. Assault Rifle destroyed. 01971_ S-10 Pest destroyed. 01972_ Acquired 36 matter. 01979_ Ion Engine destroyed. 01982_ Propulsion Shielding destroyed. 01982_ Wheel destroyed. 01984_ K-01 Serf collects debris. 01986_ Acquired Aluminum Leg. Map ----- +----------------------------------------------------+ | ?????????????????????????????????????????????????? | | ?????????????????????????????????????????????????? | | ?????????????????????????????????????????????????? | | ?????????????????????????????????????????????????? | | ?????????????????????????????????????????????????? | | ?????????????????????????????????????????????????? | | ?????????????????????????????????????????????????? | | ?????????????????????????????????????????????????? | | ?????????????????????????????????????????????????? | | ?????????????????????????????????????????????????? | | ????????????????????????? ??????????????????????? | | ????????????????????????? ??????????????????????? | | ????????????????????????? ??????????????????????? | | ????????????????????????# #?????????????????????? | | ????????????????????????# #?????????????????????? | | ????????????????????????#k ###???????????????????? | | ????????????????????????# ##??????????????????? | | ????????????????????????# #???####???????????? | | ???????????????????????## ##?# ##??????????? | | ??????????????????????## ##k #??????????? | | ????????sss??????###### ##?????????? | | ?????????????????? #?????????? | | ???????????????????? s[ ???????????? | | ?????????????????????#s #??????????????? | | ?????????????????????# s #???????????????? | | ?????????????????????# @ g #????????????????? | | ?????????????????????## % #????????????????? | | ??????????????????????# ! ##????????????????? | | ??????????????????????## = ##?????????????????? | | ???????????????????????## ####??????????????????? | | ????????????????????????####?????????????????????? | | ?????????????????????????????????????????????????? | | ?????????????????????????????????????????????????? | | ?????????????????????????????????????????????????? | | ?????????????????????????????????????????????????? | | ?????????????????????????????????????????????????? | | ?????????????????????????????????????????????????? | | ?????????????????????????????????????????????????? | | ?????????????????????????????????????????????????? | | ?????????????????????????????????????????????????? | | ?????????????????????????????????????????????????? | | ?????????????????????????????????????????????????? | | ?????????????????????????????????????????????????? | | ?????????????????????????????????????????????????? | | ?????????????????????????????????????????????????? | | ?????????????????????????????????????????????????? | | ?????????????????????????????????????????????????? | | ?????????????????????????????????????????????????? | | ?????????????????????????????????????????????????? | | ?????????????????????????????????????????????????? | +----------------------------------------------------+ Best States ------------- Heat Dissipation 25 Energy Generation 10 Energy Capacity 250 Matter Stores 300 Matter Capacity 300 Sight Range 16 Terrain Scan Density 10 Armor Coverage 150 Propulsion Shielding 33 Evasion (%) 44 Recoil Reduction 2 Item Schematics ----------------- None Robot Schematics ------------------ None Fabricated ------------ Nothing Repaired ---------- Nothing Alien Tech Used ----------------- None Achievements -------------- None Challenges ------------ None Game ------ Seed PoweredProjectileStorm Manual? 0 Play Time 00:23:31 Cumulative 23.4 hours Start 2025.08.05 @ 23:03:17 End 2025.08.06 @ 00:02:02 Sessions 1 Manual Loads 0 Difficulty Rogue Special Mode None Game No. 35 Rogue 35 Adventurer 0 Explorer 0 Win Type - Total 0 Types 0/0/0/0/0/0/0/0/0/0 Lore% 31 Gallery% 28 Achievement% 27 Wizard Run 0 Options --------- Layout 1 ASCII 0 Keyboard 0 Movement Numpad Keybinds 0 Fullscreen 1 Font 24/Smallcaps Map View 50x35 Zoom Use 0% Tactical HUD 1 Map Filters NONE Filters NONE Steam 1 RUN: ee6092fe-d50c-4f0b-9d3c-06ee7b90c1f9